bitfinex-derivatives/quotes_BTCF0:USTF0_20250330
["timestamp","ask_amount","ask_price","bid_price","bid_amount"]
[1743375232836,1.01495588,82501.0,82500.0,0.1]
[1743375233237,1.01495588,82501.0,82492.0,0.00018182]
[1743375233238,0.1212563,82493.0,82492.0,0.00018182]
[1743375233442,0.4826963,82493.0,82492.0,0.00090182]
[1743375234149,0.81911944,82493.0,82492.0,0.00090182]
[1743375234554,0.81911944,82493.0,82492.0,0.00018182]
[1743375235052,0.1212784,82478.0,82473.0,0.0606426]
[1743375235244,0.4818784,82478.0,82477.0,0.0008]
[1743375235450,0.1212798,82477.0,82476.0,0.1035]
[1743375235634,0.2334198,82477.0,82476.0,0.2255013]
[1743375235839,0.2334198,82477.0,82476.0,0.2262213]
[1743375236038,0.2334198,82477.0,82476.0,0.2255013]
[1743375236251,0.2284198,82477.0,82476.0,0.2255013]
[1743375236450,0.45336498,82477.0,82476.0,0.3376013]
[1743375237051,0.46239611,82477.0,82476.0,0.21632]
[1743375237241,0.82319611,82477.0,82476.0,0.00072]
[1743375237440,0.1212901,82470.0,82469.0,0.1034]
[1743375237654,0.4828901,82470.0,82469.0,0.2253316]
[1743375237950,0.4828901,82470.0,82469.0,0.3313316]
[1743375238254,0.60413675,82470.0,82469.0,0.10404]
[1743375238445,0.1213019,82462.0,82461.0,0.106]
[1743375238749,0.4830219,82462.0,82461.0,0.10664]
[1743375238956,0.49275186,82462.0,82461.0,0.10664]
[1743375239160,0.6140088,82462.0,82461.0,0.2279434]
[1743375239450,0.8216088,82462.0,82461.0,0.10664]
[1743375239655,0.8216088,82462.0,82461.0,0.2279434]
[1743375239963,0.37144996,82462.0,82461.0,0.2279434]
[1743375240458,0.49275186,82462.0,82461.0,0.2279434]
[1743375240855,0.4830219,82462.0,82461.0,0.2279434]
[1743375241744,0.4830219,82462.0,82461.0,0.3288434]
[1743375243354,0.4830219,82462.0,82461.0,0.20754]
[1743375244055,0.6928219,82462.0,82461.0,0.20754]
[1743375244360,0.6928219,82462.0,82461.0,0.00064]
[1743375244560,0.6928219,82462.0,82461.0,0.1213034]
[1743375244747,0.36172,82462.0,82461.0,0.1219834]
[1743375245152,0.36172,82462.0,82461.0,0.3344834]
[1743375245356,0.4830219,82462.0,82461.0,0.3344834]
[1743375246258,0.4830219,82462.0,82461.0,0.10948]
[1743375246455,0.60429061,82462.0,82461.0,0.1088]
[1743375246660,0.60429061,82462.0,82461.0,0.2301034]
[1743375246866,0.81769061,82462.0,82461.0,0.2307434]
[1743375247759,0.71239061,82462.0,82461.0,0.2307434]
[1743375247960,0.4830219,82462.0,82461.0,0.2307434]
[1743375248663,0.1213284,82445.0,82444.0,0.0606635]
[1743375248868,0.1213284,82444.0,82443.0,0.12181498]
[1743375249159,0.22404841,82444.0,82443.0,0.00160518]
[1743375249357,0.22404841,82444.0,82443.0,0.00048518]
[1743375249557,0.22404841,82444.0,82443.0,0.12181498]
[1743375250258,0.22404841,82444.0,82443.0,0.12245498]
[1743375251062,0.12244841,82444.0,82443.0,0.12245498]
[1743375251560,0.00112001,82444.0,82443.0,0.12245498]
[1743375252470,0.12244841,82444.0,82443.0,0.12245498]
[1743375252651,0.00112001,82444.0,82443.0,0.12245498]
[1743375253167,0.12244841,82444.0,82443.0,0.12245498]
[1743375253365,0.00112001,82444.0,82443.0,0.12245498]
[1743375254263,0.12244841,82444.0,82443.0,0.12245498]
[1743375258066,0.0606413,82476.0,82452.0,0.1213166]
[1743375258266,0.0606413,82476.0,82452.0,0.1220366]
[1743375258267,0.00098194,82453.0,82452.0,0.1220366]
[1743375258859,0.12229704,82453.0,82452.0,0.1220366]
[1743375259168,0.00098194,82453.0,82452.0,0.1220366]
[1743375259756,0.00018194,82453.0,82452.0,0.1220366]
[1743375260256,0.00094194,82453.0,82452.0,0.1220366]
[1743375260770,0.22505704,82453.0,82452.0,0.1220366]
[1743375260969,0.45303899,82453.0,82452.0,0.1220366]
[1743375261172,0.45403899,82453.0,82452.0,0.1270366]
[1743375261472,0.33272389,82453.0,82452.0,0.1270366]
[1743375261771,0.21144194,82453.0,82452.0,0.1270366]
[1743375262072,0.21044194,82453.0,82452.0,0.1270366]
[1743375262772,0.33175704,82453.0,82452.0,0.1270366]
[1743375263070,0.45303899,82453.0,82452.0,0.1270366]
[1743375263776,0.45303899,82453.0,82452.0,0.00572]
[1743375263971,0.45303899,82453.0,82452.0,0.1263166]
[1743375264774,0.45303899,82453.0,82452.0,0.1269566]
[1743375265371,0.33172389,82453.0,82452.0,0.1269566]
[1743375265577,0.33175704,82453.0,82452.0,0.1269566]
[1743375265969,0.33175704,82453.0,82452.0,0.2312566]
[1743375267075,0.21044194,82453.0,82452.0,0.2312566]
[1743375267271,0.21044194,82453.0,82452.0,0.3388566]
[1743375268186,0.33175704,82453.0,82452.0,0.3388566]
[1743375268672,0.21044194,82453.0,82452.0,0.3388566]
[1743375268875,0.10374194,82453.0,82452.0,0.3388566]
[1743375269070,0.00094194,82453.0,82452.0,0.3388566]
[1743375270384,0.21644194,82453.0,82452.0,0.3388566]
[1743375271787,0.33775704,82453.0,82452.0,0.3388566]
[1743375273690,0.00094194,82453.0,82452.0,0.3388566]
[1743375273898,0.14493931,82464.0,82452.0,0.3388566]
[1743375273899,0.0999,82462.0,82461.0,0.1213034]
[1743375274092,0.10066,82462.0,82461.0,0.1219434]
[1743375274603,0.10066,82462.0,82461.0,0.3280434]
[1743375275104,0.10066,82462.0,82461.0,0.3310434]
[1743375276303,0.10066,82462.0,82461.0,0.3330434]
[1743375276991,0.20906,82462.0,82461.0,0.3330434]
[1743375277591,0.10916,82462.0,82461.0,0.3330434]
[1743375277791,0.1096,82468.0,82467.0,0.1212945]
[1743375278098,0.11036,82468.0,82467.0,0.1220945]
[1743375278501,0.11036,82468.0,82467.0,0.3273945]
[1743375279694,0.11036,82468.0,82467.0,0.3283945]
[1743375280204,0.11036,82468.0,82467.0,0.34205943]
[1743375280796,0.24564701,82468.0,82467.0,0.1230945]
[1743375281106,0.3669069,82468.0,82467.0,0.0018]
[1743375281315,0.3669069,82468.0,82467.0,0.001]
[1743375285718,0.3669069,82468.0,82467.0,0.00164]
[1743375285915,0.3669069,82468.0,82467.0,0.001]
[1743375286219,0.49699299,82468.0,82467.0,0.1222945]
[1743375286417,0.49699299,82468.0,82467.0,0.1229345]
[1743375286616,0.35291299,82468.0,82467.0,0.1229345]
[1743375287619,0.23161989,82468.0,82467.0,0.1229345]
[1743375287914,0.23161989,82468.0,82467.0,0.2268345]
[1743375288132,0.23161989,82468.0,82467.0,0.1229345]
[1743375289218,0.35291299,82468.0,82467.0,0.1229345]
[1743375291212,0.46011299,82468.0,82467.0,0.1229345]
[1743375293826,0.46011299,82468.0,82467.0,0.2289345]
[1743375294618,0.46011299,82468.0,82467.0,0.1229345]
[1743375294817,0.46011299,82468.0,82467.0,0.1222945]
[1743375295018,0.46011299,82468.0,82467.0,0.1229345]
[1743375297110,0.82091299,82468.0,82467.0,0.00164]
[1743375297313,0.82091299,82468.0,82467.0,0.001]
[1743375297507,0.82091299,82468.0,82467.0,0.1222945]
[1743375298428,0.82091299,82468.0,82467.0,0.2309345]
[1743375301023,0.6996531,82468.0,82467.0,0.3343345]
[1743375301228,0.57836,82468.0,82467.0,0.44799284]
[1743375301424,0.6996531,82468.0,82467.0,0.44799284]
[1743375303232,0.6996531,82468.0,82467.0,0.4342345]
[1743375303533,0.1213078,82458.0,82457.0,0.0606544]
[1743375303725,0.48306781,82458.0,82457.0,0.0606544]
[1743375304233,0.48306781,82458.0,82457.0,0.0612944]
[1743375304429,0.1213137,82454.0,82453.0,0.00018194]
[1743375304622,0.12251371,82454.0,82453.0,0.00018194]
[1743375304828,0.12251371,82454.0,82453.0,0.12149704]
[1743375304829,0.11851371,82454.0,82453.0,0.12149704]
[1743375305133,0.23979418,82454.0,82453.0,0.12149704]
[1743375305316,0.23679418,82454.0,82453.0,0.12149704]
[1743375305521,0.23679418,82454.0,82453.0,0.00082194]
[1743375305722,0.23679418,82454.0,82453.0,0.00518194]
[1743375306029,0.23679418,82454.0,82453.0,0.00918194]
[1743375309419,0.28679418,82454.0,82453.0,1e-08]
[1743375309822,0.43679418,82454.0,82453.0,1e-08]
[1743375310437,0.1213475,82431.0,82430.0,0.219849]
[1743375310735,0.3608,82434.0,82433.0,0.1820163]
[1743375310930,0.36196,82434.0,82433.0,0.29493394]
[1743375311120,0.49289387,82434.0,82433.0,0.27338934]
[1743375311322,0.59699387,82434.0,82433.0,0.27338934]
[1743375311529,0.74174214,82434.0,82433.0,0.27338934]
[1743375311725,0.74174214,82434.0,82433.0,0.07508934]
[1743375311925,0.60676307,82434.0,82433.0,0.07440934]
[1743375312237,0.4940723,82434.0,82433.0,0.17484934]
[1743375313127,0.50366819,82434.0,82433.0,0.1611117]
[1743375313325,0.62501129,82434.0,82433.0,0.1611117]
[1743375313521,0.50466819,82434.0,82433.0,0.1611117]
[1743375313729,0.38335388,82434.0,82433.0,0.1611117]
[1743375313936,0.37355589,82434.0,82433.0,0.1611117]
[1743375314233,0.4853031,82434.0,82433.0,0.1611117]
[1743375314625,0.36396,82434.0,82433.0,0.1611117]
[1743375315237,0.37286671,82434.0,82433.0,0.1611117]
[1743375315439,0.49420981,82434.0,82433.0,0.1611117]
[1743375316637,0.37286671,82434.0,82433.0,0.1611117]
[1743375317034,0.36396,82434.0,82433.0,0.1611117]
[1743375317339,0.4853031,82434.0,82433.0,0.1611117]
[1743375318226,0.606613,82434.0,82433.0,0.1611117]
[1743375318528,0.709613,82434.0,82433.0,0.1611117]
[1743375318727,0.59758493,82434.0,82433.0,0.1611117]
[1743375319235,0.59758493,82434.0,82433.0,0.10044]
[1743375322241,0.59758493,82434.0,82433.0,0.00064]
[1743375322443,0.71889483,82434.0,82433.0,0.00064]
[1743375322642,0.1213504,82429.0,82428.0,0.1037]
[1743375323151,0.1213504,82429.0,82427.0,0.00048527]
[1743375323152,0.1213519,82428.0,82427.0,0.00048527]
[1743375323332,0.1213622,82421.0,82420.0,0.1037]
[1743375323644,0.4821622,82421.0,82420.0,0.1037]
[1743375324044,0.6034721,82421.0,82420.0,0.1037]
[1743375324229,0.8105721,82421.0,82420.0,0.1037]
[1743375324434,0.8115721,82421.0,82420.0,0.1037]
[1743375324634,0.8125721,82421.0,82420.0,0.1037]
[1743375325133,0.82631719,82421.0,82420.0,0.1037]
[1743375325333,0.82631719,82421.0,82420.0,0.2250637]
[1743375326344,0.70495499,82421.0,82420.0,0.2250637]
[1743375327336,0.82631719,82421.0,82420.0,0.2250637]
[1743375327849,0.8275172,82421.0,82420.0,0.2257437]
[1743375328146,0.8275172,82421.0,82420.0,0.10438]
[1743375328740,0.8275172,82421.0,82420.0,0.3248437]
[1743375329546,0.4667172,82421.0,82420.0,0.3248437]
[1743375329752,0.8275172,82421.0,82420.0,0.3248437]
[1743375331748,0.4667172,82421.0,82420.0,0.3248437]
[1743375331953,0.8275172,82421.0,82420.0,0.3248437]
[1743375332437,0.8275172,82421.0,82414.0,0.0606856]
[1743375332438,0.1820558,82417.0,82414.0,0.0606856]
[1743375332638,0.06208471,82417.0,82416.0,0.1213689]
[1743375332851,0.06208471,82417.0,82416.0,0.1220089]
[1743375333052,0.06208471,82417.0,82416.0,0.2251089]
[1743375333247,0.1834211,82417.0,82416.0,0.2251089]
[1743375333750,0.1854211,82417.0,82416.0,0.2251089]
[1743375334554,0.1854211,82417.0,82416.0,0.1220089]
[1743375335338,0.19504725,82417.0,82416.0,0.1220089]
[1743375336454,0.20480729,82417.0,82416.0,0.1220089]
[1743375336755,0.14412259,82417.0,82416.0,0.1220089]
[1743375337158,0.14423523,82417.0,82416.0,0.2222089]
[1743375337358,0.26560333,82417.0,82416.0,0.2222089]
[1743375337851,0.26560333,82417.0,82416.0,0.1220089]
[1743375338355,0.25584329,82417.0,82416.0,0.1220089]
[1743375341058,0.25606116,82417.0,82416.0,0.1220089]
[1743375341258,0.28202541,82417.0,82416.0,0.00064]
[1743375341449,0.28202541,82417.0,82414.0,0.121372]
[1743375341450,0.1213711,82415.0,82414.0,0.121372]
[1743375341651,0.14889294,82415.0,82414.0,0.122052]
[1743375341959,0.03728091,82415.0,82414.0,0.122052]
[1743375342154,0.15861878,82415.0,82414.0,0.122052]
[1743375342358,0.1424136,82415.0,82414.0,0.122052]
[1743375342554,0.1434136,82415.0,82414.0,0.221452]
[1743375343057,0.14312031,82415.0,82414.0,0.221452]
[1743375343258,0.13336124,82415.0,82414.0,0.221452]
[1743375343654,0.13436124,82415.0,82414.0,0.221452]
[1743375344254,0.12469787,82415.0,82414.0,0.221452]
[1743375344857,0.12469787,82415.0,82414.0,0.23504983]
[1743375345855,0.00336,82415.0,82414.0,0.23504983]
[1743375346053,0.00336,82415.0,82414.0,0.37872983]
[1743375346258,0.002,82415.0,82414.0,0.37872983]
[1743375346763,0.00336,82415.0,82414.0,0.37872983]
[1743375346966,0.002,82415.0,82414.0,0.37872983]
[1743375351064,0.00336,82415.0,82414.0,0.37872983]
[1743375351267,0.002,82415.0,82414.0,0.37872983]
[1743375352569,0.00336,82415.0,82414.0,0.37872983]
[1743375353966,0.00336,82415.0,82414.0,0.73952983]
[1743375354164,0.002,82415.0,82414.0,0.73952983]
[1743375354362,0.1233711,82415.0,82414.0,0.23504983]
[1743375354563,0.00336,82415.0,82414.0,0.23504983]
[1743375354754,0.00336,82415.0,82414.0,0.32894983]
[1743375354954,0.002,82415.0,82414.0,0.32894983]
[1743375355559,0.00336,82415.0,82414.0,0.32894983]
[1743375355855,0.002,82415.0,82414.0,0.32894983]
[1743375356671,0.00336,82415.0,82414.0,0.32894983]
[1743375357666,0.002,82415.0,82414.0,0.32894983]
[1743375357858,0.00340001,82415.0,82414.0,0.32894983]
[1743375358560,0.002,82415.0,82414.0,0.32894983]
[1743375358766,0.00336,82415.0,82414.0,0.32894983]
[1743375359654,0.18150907,82430.0,82422.0,0.1213608]
[1743375359971,0.36176001,82423.0,82422.0,0.1220808]
[1743375360562,0.36176001,82423.0,82422.0,0.3180808]
[1743375360958,0.36276001,82423.0,82422.0,0.3180808]
[1743375361372,0.00196001,82423.0,82422.0,0.3180808]
[1743375361667,0.001,82423.0,82422.0,0.3180808]
[1743375361868,0.002,82423.0,82422.0,0.3180808]
[1743375369968,0.002,82423.0,82422.0,0.6788808]
[1743375371865,0.002,82423.0,82422.0,0.8223608]
[1743375376479,0.002,82423.0,82422.0,0.4615608]
[1743375377078,0.002,82423.0,82422.0,0.1220808]
[1743375377280,0.003,82423.0,82422.0,0.1220808]
[1743375377775,0.1962,82423.0,82422.0,0.1220808]
[1743375378374,0.19716001,82423.0,82422.0,0.1220808]
[1743375378771,0.1962,82423.0,82422.0,0.1220808]
[1743375379172,0.6783593,82423.0,82422.0,0.1220808]
[1743375379392,0.67931931,82423.0,82422.0,0.1220808]
[1743375380184,0.67931931,82423.0,82422.0,0.00072]
[1743375380185,0.8006454,82423.0,82422.0,0.00072]
[1743375380592,0.1213622,82421.0,82420.0,0.1213629]
[1743375380792,0.12232221,82421.0,82420.0,0.1220029]
[1743375380978,0.12232221,82421.0,82420.0,0.1213629]
[1743375381302,0.1213696,82416.0,82415.0,0.182051]
[1743375381589,0.36184001,82416.0,82415.0,0.182771]
[1743375381790,0.00104001,82416.0,82415.0,0.182771]
[1743375381974,0.09644001,82416.0,82415.0,0.182771]
[1743375382384,0.09644001,82416.0,82415.0,0.281571]
[1743375382692,0.09744001,82416.0,82415.0,0.281571]
[1743375382992,0.09744001,82416.0,82415.0,0.838471]
[1743375383188,0.0964,82416.0,82415.0,0.838471]
[1743375383688,0.0931,82417.0,82416.0,0.1213696]
[1743375383991,0.24080725,82428.0,82427.0,0.1213534]
[1743375384180,0.24184726,82428.0,82427.0,0.1220734]
[1743375385085,0.24284726,82428.0,82427.0,0.1220734]
[1743375386074,0.24384726,82428.0,82427.0,0.1220734]
[1743375387085,0.09864001,82428.0,82427.0,0.1220734]
[1743375387284,0.0976,82428.0,82427.0,0.1220734]
[1743375390895,0.14520725,82438.0,82437.0,0.1213387]
[1743375391082,0.24226726,82438.0,82437.0,0.1219787]
[1743375391889,0.21839721,82438.0,82437.0,0.1219787]
[1743375392187,0.21939721,82438.0,82437.0,0.1219787]
[1743375392382,0.67719721,82438.0,82437.0,0.1219787]
[1743375392598,0.67819721,82438.0,82437.0,0.1219787]
[1743375394600,0.69173856,82438.0,82437.0,0.1219787]
[1743375394998,0.69173856,82438.0,82437.0,0.00064]
[1743375395205,0.1820247,82431.0,82430.0,0.1213488]
[1743375395506,0.5439047,82431.0,82430.0,0.1223088]
[1743375395688,0.8381047,82431.0,82430.0,0.00096]
[1743375395893,0.1213549,82426.0,82425.0,0.1213546]
[1743375396199,0.0606766,82428.0,82427.0,0.1213534]
[1743375396399,0.0606766,82428.0,82427.0,0.1220334]
[1743375396400,0.0616766,82428.0,82427.0,0.1220334]
[1743375396605,0.001,82428.0,82427.0,0.1220334]
[1743375396902,0.1018,82431.0,82430.0,0.121349]
[1743375397204,0.10276001,82431.0,82430.0,0.121989]
[1743375397405,0.10376001,82431.0,82430.0,0.121989]
[1743375397902,0.10476001,82431.0,82430.0,0.121989]
[1743375398208,0.22610751,82431.0,82430.0,0.121989]
[1743375400392,0.10476001,82431.0,82430.0,0.121989]
[1743375401194,0.00296001,82431.0,82430.0,0.219089]
[1743375401502,0.00296001,82431.0,82430.0,0.315089]
[1743375401894,0.002,82431.0,82430.0,0.315089]
[1743375402296,0.00296001,82431.0,82430.0,0.315089]
[1743375402907,0.12430751,82431.0,82430.0,0.315089]
[1743375403810,0.00296001,82431.0,82430.0,0.315089]
[1743375404311,0.002,82431.0,82430.0,0.315089]
[1743375406120,0.0004,82452.0,82446.0,0.1213254]
[1743375406405,0.54338907,82447.0,82446.0,0.1213254]
[1743375406596,0.54338907,82447.0,82446.0,0.13505222]
[1743375407202,0.54438907,82447.0,82446.0,0.32895222]
[1743375408115,0.54538907,82447.0,82446.0,0.32995222]
[1743375408507,0.18458907,82447.0,82446.0,0.32995222]
[1743375408708,0.00308,82447.0,82446.0,0.32995222]
[1743375409406,0.002,82447.0,82446.0,0.32995222]
[1743375409814,0.002,82447.0,82446.0,0.69075222]
[1743375410202,0.0004,82452.0,82451.0,0.1213181]
[1743375410509,0.00136001,82452.0,82451.0,0.1219581]
[1743375410705,0.0004,82452.0,82451.0,0.1219581]
[1743375410906,0.0004,82452.0,82451.0,0.3099581]
[1743375411107,0.0014,82452.0,82451.0,0.3099581]
[1743375411614,0.0014,82452.0,82451.0,0.3109581]
[1743375412111,0.0004,82452.0,82451.0,0.3109581]
[1743375413109,0.0014,82452.0,82451.0,0.3109581]
[1743375414009,0.0014,82452.0,82451.0,0.3119581]
[1743375415724,0.0014,82452.0,82451.0,0.4550381]
[1743375416302,0.00236001,82452.0,82451.0,0.4550381]
[1743375416623,0.0014,82452.0,82451.0,0.4550381]
[1743375416798,0.0963,82452.0,82451.0,0.4550381]
[1743375419701,0.0014,82452.0,82451.0,0.4550381]
[1743375421717,0.0014,82452.0,82451.0,0.8158381]
[1743375422808,0.0014,82452.0,82451.0,0.6727581]
[1743375423120,0.0014,82452.0,82451.0,0.1239581]
[1743375423519,0.09096001,82452.0,82451.0,0.1239581]
[1743375423818,0.18506001,82452.0,82451.0,0.1239581]
[1743375424409,0.30637661,82452.0,82451.0,0.1239581]
[1743375426925,0.66717661,82452.0,82451.0,0.1239581]
[1743375427123,0.66717661,82452.0,82451.0,0.1233181]
[1743375427621,0.54586001,82452.0,82451.0,0.1233181]
[1743375427824,0.54586001,82452.0,82451.0,0.1239581]
[1743375428606,0.66717661,82452.0,82451.0,0.1239581]
[1743375429025,0.66717661,82452.0,82451.0,0.00264]
[1743375429324,0.66717661,82452.0,82451.0,0.1233181]
[1743375429721,0.66717661,82452.0,82451.0,0.1242781]
[1743375430425,0.54586001,82452.0,82451.0,0.1242781]
[1743375430614,0.66717661,82452.0,82451.0,0.1242781]
[1743375431121,0.54586001,82452.0,82451.0,0.1242781]
[1743375432419,0.54586001,82452.0,82451.0,0.2165781]
[1743375432820,0.66717661,82452.0,82451.0,0.2165781]
[1743375433026,0.66717661,82452.0,82451.0,0.1242781]
[1743375433217,0.66717661,82452.0,82451.0,0.00296]
[1743375433525,0.66717661,82452.0,82451.0,0.002]
[1743375433716,0.78846003,82452.0,82451.0,0.002]
[1743375434225,0.78846003,82452.0,82451.0,0.1239581]
[1743375434423,0.78846003,82452.0,82451.0,0.1233181]
[1743375434424,0.54586001,82452.0,82451.0,0.1233181]
[1743375434626,0.54586001,82452.0,82451.0,0.1239581]
[1743375434812,0.54586001,82452.0,82451.0,0.3142581]
[1743375437430,0.18506001,82452.0,82451.0,0.3142581]
[1743375438241,0.00236001,82452.0,82451.0,0.3142581]
[1743375438422,0.0014,82452.0,82451.0,0.3142581]
[1743375438617,0.00236001,82452.0,82451.0,0.3142581]
[1743375438815,0.18136994,82461.0,82454.0,0.0606565]
[1743375439019,0.18208994,82461.0,82460.0,0.1213048]
[1743375439242,0.18208994,82461.0,82460.0,0.1219448]
[1743375439929,0.18208994,82461.0,82460.0,0.3053448]
[1743375440932,0.18208994,82461.0,82460.0,0.2122448]
[1743375441225,0.1220234,82461.0,82460.0,0.1219448]
[1743375441525,0.1220234,82461.0,82460.0,0.1269448]
[1743375445830,0.1220234,82461.0,82460.0,0.00564]
[1743375446130,0.1220234,82461.0,82460.0,0.005]
[1743375446318,0.13479367,82461.0,82460.0,0.005]
[1743375446936,0.25606385,82461.0,82460.0,0.005]
[1743375448120,0.121324,82448.0,82447.0,0.1213233]
[1743375448326,0.122004,82448.0,82447.0,0.1220833]
[1743375448529,0.396804,82448.0,82447.0,0.1220833]
[1743375448828,0.396804,82448.0,82447.0,0.00076]
[1743375449033,0.1213254,82446.0,82445.0,0.1213262]
[1743375449225,0.1819983,82443.0,82442.0,0.1213299]
[1743375449424,0.1777183,82443.0,82442.0,0.1220099]
[1743375450032,0.1514855,82443.0,82442.0,0.1220099]
[1743375450525,0.1545618,82448.0,82442.0,0.1220099]
[1743375450526,0.001,82448.0,82447.0,0.121324]
[1743375450731,0.1231225,82448.0,82447.0,0.122124]
[1743375450931,0.1231225,82448.0,82447.0,0.302024]
[1743375451132,0.1221225,82448.0,82447.0,0.302024]
[1743375451937,0.1231225,82448.0,82447.0,0.306024]
[1743375454030,0.1231225,82448.0,82447.0,0.0048]
[1743375454424,0.2128225,82448.0,82447.0,0.0048]
[1743375454626,0.2128225,82448.0,82447.0,0.004]
[1743375455641,0.2128225,82448.0,82447.0,0.126204]
[1743375456430,0.2128225,82448.0,82447.0,0.00488]
[1743375457022,0.3341118,82448.0,82447.0,0.004]
[1743375458946,0.3341118,82448.0,82438.0,0.00018194]
[1743375458947,0.1213357,82439.0,82438.0,0.00018194]
[1743375459128,0.1213504,82429.0,82428.0,0.21455006]
[1743375459444,0.1221504,82429.0,82428.0,0.21535006]
[1743375459831,0.24345294,82429.0,82428.0,0.21535006]
[1743375460030,0.47465294,82429.0,82428.0,0.21535006]
[1743375460233,0.47565294,82429.0,82428.0,0.21535006]
[1743375460437,0.47665294,82429.0,82428.0,0.21635006]
[1743375461043,0.47565294,82429.0,82428.0,0.0008]
[1743375461239,0.47665294,82429.0,82428.0,0.001]
[1743375462741,0.47665294,82429.0,82428.0,0.1223519]
[1743375462941,0.48979019,82429.0,82428.0,0.1223519]
[1743375463547,0.49902127,82429.0,82428.0,0.1223519]
[1743375464230,0.49902127,82429.0,82428.0,0.001]
[1743375466443,0.060679,82424.0,82420.0,0.00018194]
[1743375466741,0.4821622,82421.0,82420.0,0.00018194]
[1743375466934,0.4828022,82421.0,82420.0,0.00018194]
[1743375467743,0.60413123,82421.0,82420.0,0.00018194]
[1743375468040,0.05,82418.0,82390.0,0.21455006]
[1743375468346,0.5428822,82404.0,82403.0,0.1213887]
[1743375468639,0.3616,82404.0,82403.0,0.1221887]
[1743375469642,0.3616,82404.0,82403.0,0.2094887]
[1743375469830,0.0008,82404.0,82403.0,0.2094887]
[1743375470232,0.001,82404.0,82403.0,0.2094887]
[1743375470739,0.002,82404.0,82403.0,0.2094887]
[1743375471647,0.00018194,82412.0,82411.0,0.121377]
[1743375471947,0.00098194,82412.0,82411.0,0.122297]
[1743375472246,0.02227747,82429.0,82417.0,0.0606839]
[1743375472433,0.14483537,82426.0,82425.0,0.0606775]
[1743375472629,0.14547537,82426.0,82425.0,0.2704338]
[1743375472834,0.14547537,82426.0,82425.0,0.4588338]
[1743375473247,0.14483537,82426.0,82425.0,0.4588338]
[1743375473438,0.14483537,82426.0,82425.0,0.47157077]
[1743375473836,0.14683537,82426.0,82425.0,0.47157077]
[1743375475848,0.002,82426.0,82425.0,0.47157077]
[1743375484248,0.002,82426.0,82425.0,0.35021447]
[1743375484448,0.3628,82426.0,82425.0,0.0008]
[1743375484641,0.1213593,82423.0,82422.0,0.0889]
[1743375484951,0.00088,82423.0,82422.0,0.1504597]
[1743375485151,0.13174647,82423.0,82422.0,0.08978]
[1743375485354,0.25306814,82423.0,82422.0,0.08978]
[1743375485848,0.25406814,82423.0,82422.0,0.08978]
[1743375486050,0.25406814,82423.0,82422.0,0.0889]
[1743375486353,0.25406814,82423.0,82422.0,0.2102608]
[1743375486554,0.25506814,82423.0,82422.0,0.2110608]
[1743375486854,0.25506814,82423.0,82422.0,0.0897]
[1743375487051,0.25506814,82423.0,82422.0,0.0889]
[1743375487250,0.25506814,82423.0,82422.0,0.2102608]
[1743375487251,0.24556097,82423.0,82422.0,0.2102608]
[1743375487550,0.2552854,82423.0,82422.0,0.2110608]
[1743375488142,0.1213666,82418.0,82417.0,0.00018194]
[1743375488339,0.1213666,82418.0,82417.0,0.00086194]
[1743375488340,0.49257103,82418.0,82417.0,0.00086194]
[1743375488953,0.61389712,82418.0,82417.0,0.00086194]
[1743375489444,0.61489712,82418.0,82417.0,0.00018194]
[1743375489645,0.61589712,82418.0,82417.0,0.00086194]
[1743375490559,0.61589712,82418.0,82417.0,0.12155004]
[1743375490852,0.61589712,82418.0,82417.0,0.00082194]
[1743375491064,0.61589712,82418.0,82417.0,0.12155004]
[1743375491357,0.61589712,82418.0,82417.0,0.00086194]
[1743375491662,0.61589712,82418.0,82417.0,0.17516194]
[1743375491961,0.61589712,82418.0,82417.0,0.17448194]
[1743375492358,0.61589712,82418.0,82417.0,0.08788194]
[1743375493562,0.79949712,82418.0,82417.0,0.08788194]
[1743375494547,0.79949712,82418.0,82417.0,0.00018194]
[1743375494944,0.67817103,82418.0,82417.0,0.12155004]
[1743375495149,0.67817103,82418.0,82417.0,0.00018194]
[1743375495551,0.79950448,82418.0,82417.0,0.00018194]
[1743375497355,0.78978005,82418.0,82417.0,0.00018194]
[1743375498059,0.00268,82418.0,82417.0,0.12155004]
[1743375498356,0.1240466,82418.0,82417.0,0.39669004]
[1743375498860,0.2110466,82418.0,82417.0,0.00082194]
[1743375499162,0.33238005,82418.0,82417.0,0.00018194]
[1743375499466,0.1213843,82406.0,82405.0,0.0935]
[1743375499763,0.1220643,82406.0,82405.0,0.09414]
[1743375500151,0.3823643,82406.0,82405.0,0.09414]
[1743375500346,0.39195369,82406.0,82405.0,0.09414]
[1743375500657,0.39195369,82406.0,82405.0,0.00064]
[1743375500864,0.39295369,82406.0,82405.0,0.00064]
[1743375501052,0.51430481,82406.0,82405.0,0.00064]
[1743375501257,0.50471542,82406.0,82405.0,0.1220258]
[1743375501757,0.39701177,82406.0,82405.0,0.1220258]
[1743375502256,0.40651585,82406.0,82405.0,0.00064]
[1743375502463,0.40651585,82406.0,82405.0,0.1213858]
[1743375502664,0.40651585,82406.0,82405.0,0.1221058]
[1743375503160,0.51839607,82406.0,82405.0,0.1221058]
[1743375503467,0.52790027,82406.0,82405.0,0.1221058]
[1743375503669,0.40651597,82406.0,82405.0,0.1221058]
[1743375504363,0.39701177,82406.0,82405.0,0.2101058]
[1743375504865,0.31151177,82406.0,82405.0,0.2101058]
[1743375505454,0.21183112,82406.0,82405.0,0.2101058]
[1743375505769,0.00268,82406.0,82405.0,0.2101058]
[1743375505953,0.002,82406.0,82405.0,0.2101058]
[1743375506769,0.3608,82419.0,82413.0,0.121374]
[1743375506953,0.00094194,82414.0,82413.0,0.122094]
[1743375507665,0.00094194,82414.0,82413.0,0.298294]
[1743375507855,0.00194194,82414.0,82413.0,0.298294]
[1743375508564,0.00294194,82414.0,82413.0,0.298294]
[1743375510962,0.00218194,82414.0,82413.0,0.298294]
[1743375515058,0.00298194,82414.0,82413.0,0.298294]
[1743375517059,0.08698194,82414.0,82413.0,0.298294]
[1743375517260,0.08698194,82414.0,82413.0,0.17692]
[1743375517261,0.20835444,82414.0,82413.0,0.17692]
[1743375517455,0.33920829,82414.0,82413.0,0.00072]
[1743375517670,0.1213828,82407.0,82406.0,0.21455006]
[1743375517868,0.13157819,82407.0,82406.0,0.29997006]
[1743375518076,0.13157819,82407.0,82406.0,0.42135436]
[1743375518277,0.30237819,82407.0,82406.0,0.42135436]
[1743375518777,0.66317819,82407.0,82406.0,0.42135436]
[1743375519163,0.01019539,82407.0,82406.0,0.42135436]
[1743375519362,0.001,82407.0,82406.0,0.42135436]
[1743375520175,0.2314404,82407.0,82406.0,0.2068043]
[1743375520377,0.1108176,82407.0,82406.0,0.2068043]